[Event "Live Chess"]
[Site "Chess.com"]
[Date "2011.01.25"]
[Round "-"]
[White "ivica01"]
[Black "hipposcottimus"]
[Result "1-0"]
[CurrentPosition "8/8/2P5/8/2Q5/1P1P1K2/3kR3/8 b - -"]
[Timezone "UTC"]
[ECO "C50"]
[ECOUrl "https://www.chess.com/openings/Italian-Game"]
[UTCDate "2011.01.25"]
[UTCTime "19:50:27"]
[WhiteElo "1605"]
[BlackElo "1432"]
[TimeControl "480"]
[Termination "ivica01 won on time"]
[StartTime "19:50:27"]
[EndDate "2011.01.25"]
[EndTime "20:02:49"]
[Link "https://www.chess.com/game/live/91321083"]

1. e4 {[%clk 0:08:00]} 1... e5 {[%clk 0:08:00]} 2. Bc4 {[%clk 0:07:58.4]} 2... Nc6 {[%clk 0:07:58]} 3. Nf3 {[%clk 0:07:55.9]} 3... Nf6 {[%clk 0:07:56.2]} 4. d3 {[%clk 0:07:54.2]} 4... d5 {[%clk 0:07:55]} 5. exd5 {[%clk 0:07:53]} 5... Nxd5 {[%clk 0:07:52.2]} 6. Ng5 {[%clk 0:07:41.9]} 6... Be7 {[%clk 0:07:44.4]} 7. Nxf7 {[%clk 0:07:37.3]} 7... Kxf7 {[%clk 0:07:38.1]} 8. Qf3+ {[%clk 0:07:32.3]} 8... Bf6 {[%clk 0:07:21.2]} 9. Qxd5+ {[%clk 0:07:23.5]} 9... Kg6 {[%clk 0:07:11.9]} 10. Qf3 {[%clk 0:07:13]} 10... Re8 {[%clk 0:07:00.9]} 11. O-O {[%clk 0:07:07.3]} 11... Be6 {[%clk 0:06:53.1]} 12. Bxe6 {[%clk 0:06:44.8]} 12... Rxe6 {[%clk 0:06:50.2]} 13. Nc3 {[%clk 0:06:42.1]} 13... Kf7 {[%clk 0:06:45.6]} 14. Qh5+ {[%clk 0:06:35.1]} 14... Kg8 {[%clk 0:06:42]} 15. Ne4 {[%clk 0:06:20.8]} 15... Bh4 {[%clk 0:06:24.2]} 16. Bg5 {[%clk 0:05:56.1]} 16... Bxg5 {[%clk 0:06:05.7]} 17. Qxg5 {[%clk 0:05:47.4]} 17... Qf8 {[%clk 0:05:51.9]} 18. f4 {[%clk 0:05:36.1]} 18... Nd4 {[%clk 0:05:20.1]} 19. fxe5 {[%clk 0:05:26.5]} 19... Ne2+ {[%clk 0:05:03.6]} 20. Kh1 {[%clk 0:05:17.6]} 20... Qe8 {[%clk 0:04:40.2]} 21. Nf6+ {[%clk 0:05:10.2]} 21... Rxf6 {[%clk 0:03:29.7]} 22. exf6 {[%clk 0:05:04.8]} 22... Qd7 {[%clk 0:03:13.6]} 23. fxg7 {[%clk 0:04:42.2]} 23... Qd6 {[%clk 0:02:21.8]} 24. Rf8+ {[%clk 0:04:28.5]} 24... Rxf8 {[%clk 0:02:18.9]} 25. gxf8=Q+ {[%clk 0:04:25.8]} 25... Kxf8 {[%clk 0:02:17.4]} 26. Rf1+ {[%clk 0:04:21.1]} 26... Ke8 {[%clk 0:02:12.9]} 27. Qe3+ {[%clk 0:04:08]} 27... Qe7 {[%clk 0:02:09.4]} 28. Qxe7+ {[%clk 0:04:03.7]} 28... Kxe7 {[%clk 0:02:08.2]} 29. Re1 {[%clk 0:04:02.9]} 29... c5 {[%clk 0:02:05.9]} 30. Rxe2+ {[%clk 0:04:01.6]} 30... Kd6 {[%clk 0:02:05.6]} 31. g4 {[%clk 0:03:59.4]} 31... b5 {[%clk 0:02:05.1]} 32. h4 {[%clk 0:03:57.7]} 32... a5 {[%clk 0:02:04.5]} 33. Kg2 {[%clk 0:03:56.6]} 33... a4 {[%clk 0:02:01.5]} 34. Kf3 {[%clk 0:03:55.1]} 34... b4 {[%clk 0:02:00.7]} 35. b3 {[%clk 0:03:51.8]} 35... axb3 {[%clk 0:01:58.4]} 36. axb3 {[%clk 0:03:46.7]} 36... Kd5 {[%clk 0:01:57.5]} 37. Re4 {[%clk 0:03:40.6]} 37... h6 {[%clk 0:01:55.1]} 38. g5 {[%clk 0:03:38.9]} 38... hxg5 {[%clk 0:01:53.6]} 39. hxg5 {[%clk 0:03:37.8]} 39... c4 {[%clk 0:01:53.1]} 40. bxc4+ {[%clk 0:03:35.6]} 40... Kd6 {[%clk 0:01:52.8]} 41. g6 {[%clk 0:03:34.3]} 41... b3 {[%clk 0:01:52.2]} 42. cxb3 {[%clk 0:03:32.9]} 42... Kc5 {[%clk 0:01:51.8]} 43. g7 {[%clk 0:03:29.3]} 43... Kb4 {[%clk 0:01:51.5]} 44. g8=Q {[%clk 0:03:21.1]} 44... Kc5 {[%clk 0:01:49.3]} 45. Re5+ {[%clk 0:03:12.8]} 45... Kd4 {[%clk 0:01:44.7]} 46. Qd5+ {[%clk 0:03:06.9]} 46... Kc3 {[%clk 0:01:40.1]} 47. c5 {[%clk 0:02:57.2]} 47... Kb4 {[%clk 0:01:35.1]} 48. c6 {[%clk 0:02:54]} 48... Kc3 {[%clk 0:01:34.8]} 49. Qc4+ {[%clk 0:02:51.4]} 49... Kd2 {[%clk 0:01:28.1]} 50. Re2+ {[%clk 0:02:35]} 1-0

[Event "Live Chess"]
[Site "Chess.com"]
[Date "2011.01.25"]
[Round "-"]
[White "hipposcottimus"]
[Black "himath2009"]
[Result "0-1"]
[CurrentPosition "r1b1k2r/1pqp1ppp/p2bp3/8/1nP2P2/1BP5/P2BN1PP/R2QK2R b KQkq -"]
[Timezone "UTC"]
[ECO "B41"]
[ECOUrl "https://www.chess.com/openings/Sicilian-Defense-Kan-Variation"]
[UTCDate "2011.01.25"]
[UTCTime "15:21:26"]
[WhiteElo "1436"]
[BlackElo "1544"]
[TimeControl "600"]
[Termination "himath2009 won by resignation"]
[StartTime "15:21:26"]
[EndDate "2011.01.25"]
[EndTime "15:24:56"]
[Link "https://www.chess.com/game/live/91244570"]

1. e4 {[%clk 0:10:00]} 1... c5 {[%clk 0:10:00]} 2. Nf3 {[%clk 0:09:59.7]} 2... e6 {[%clk 0:09:56.7]} 3. d4 {[%clk 0:09:58.2]} 3... cxd4 {[%clk 0:09:56.3]} 4. Nxd4 {[%clk 0:09:56.8]} 4... a6 {[%clk 0:09:56.2]} 5. Bc4 {[%clk 0:09:55.4]} 5... Qc7 {[%clk 0:09:53.1]} 6. Bb3 {[%clk 0:09:52.2]} 6... Nf6 {[%clk 0:09:48.3]} 7. Nc3 {[%clk 0:09:38.6]} 7... Bb4 {[%clk 0:09:44.3]} 8. Ne2 {[%clk 0:09:30.1]} 8... Nxe4 {[%clk 0:09:33.9]} 9. Bd2 {[%clk 0:09:24.6]} 9... Nxc3 {[%clk 0:08:40.3]} 10. bxc3 {[%clk 0:09:12.4]} 10... Bd6 {[%clk 0:08:26.4]} 11. f4 {[%clk 0:09:06.5]} 11... Nc6 {[%clk 0:08:18.1]} 12. c4 {[%clk 0:08:54.3]} 12... Nb4 {[%clk 0:07:50.4]} 13. c3 {[%clk 0:08:46]} 0-1

[Event "Live Chess"]
[Site "Chess.com"]
[Date "2011.01.25"]
[Round "-"]
[White "lejitico"]
[Black "hipposcottimus"]
[Result "0-1"]
[CurrentPosition "8/3r1kpp/5p2/2Qbp3/8/3PP2P/6qK/R7 w - -"]
[Timezone "UTC"]
[ECO "A10"]
[ECOUrl "https://www.chess.com/openings/English-Opening-Jaenisch-Gambit"]
[UTCDate "2011.01.25"]
[UTCTime "15:06:59"]
[WhiteElo "1334"]
[BlackElo "1436"]
[TimeControl "600+5"]
[Termination "hipposcottimus won by checkmate"]
[StartTime "15:06:59"]
[EndDate "2011.01.25"]
[EndTime "15:18:38"]
[Link "https://www.chess.com/game/live/91240734"]

1. c4 {[%clk 0:10:00]} 1... b5 {[%clk 0:10:00]} 2. e3 {[%clk 0:09:57.9]} 2... d5 {[%clk 0:09:59.8]} 3. cxb5 {[%clk 0:09:58.4]} 3... c6 {[%clk 0:10:03.7]} 4. bxc6 {[%clk 0:10:00.9]} 4... Nxc6 {[%clk 0:10:07.4]} 5. Bb5 {[%clk 0:10:03]} 5... Bd7 {[%clk 0:10:11.2]} 6. Qf3 {[%clk 0:10:03.1]} 6... Nf6 {[%clk 0:10:10.9]} 7. Nc3 {[%clk 0:10:04.4]} 7... e6 {[%clk 0:10:14.3]} 8. Nge2 {[%clk 0:10:03.7]} 8... Bc5 {[%clk 0:10:13]} 9. O-O {[%clk 0:10:03.3]} 9... O-O {[%clk 0:10:16.7]} 10. a3 {[%clk 0:10:05.2]} 10... a5 {[%clk 0:10:16.4]} 11. b3 {[%clk 0:10:00.3]} 11... Ne8 {[%clk 0:10:01.1]} 12. Bb2 {[%clk 0:10:02.2]} 12... Nc7 {[%clk 0:10:01.5]} 13. Bxc6 {[%clk 0:10:03.8]} 13... Bxc6 {[%clk 0:10:05.3]} 14. b4 {[%clk 0:10:07.4]} 14... axb4 {[%clk 0:10:05.5]} 15. axb4 {[%clk 0:10:10.9]} 15... Bxb4 {[%clk 0:10:09.9]} 16. Rxa8 {[%clk 0:10:13.6]} 16... Bxa8 {[%clk 0:10:14.7]} 17. Nd4 {[%clk 0:10:04.4]} 17... e5 {[%clk 0:10:17.1]} 18. Ndb5 {[%clk 0:09:41.9]} 18... d4 {[%clk 0:10:15.2]} 19. Qg4 {[%clk 0:09:28.3]} 19... dxc3 {[%clk 0:10:04.5]} 20. Qxb4 {[%clk 0:09:06.1]} 20... cxb2 {[%clk 0:10:00.8]} 21. Qxb2 {[%clk 0:09:06.6]} 21... f6 {[%clk 0:09:50.9]} 22. Nxc7 {[%clk 0:08:47]} 22... Qxc7 {[%clk 0:09:53.2]} 23. Ra1 {[%clk 0:08:49]} 23... Rb8 {[%clk 0:09:49.3]} 24. Qa2+ {[%clk 0:08:46]} 24... Kf8 {[%clk 0:09:41.3]} 25. Qa3+ {[%clk 0:08:47.5]} 25... Ke8 {[%clk 0:09:41.1]} 26. Qa4+ {[%clk 0:08:40.8]} 26... Bc6 {[%clk 0:09:40.3]} 27. Qg4 {[%clk 0:08:29.8]} 27... Qb7 {[%clk 0:09:18.5]} 28. h3 {[%clk 0:07:57.1]} 28... Bd5 {[%clk 0:09:01.5]} 29. Kh2 {[%clk 0:07:40]} 29... Qb2 {[%clk 0:08:55.2]} 30. Qa4+ {[%clk 0:07:36.4]} 30... Kf7 {[%clk 0:08:39.7]} 31. Qa7+ {[%clk 0:07:34.4]} 31... Rb7 {[%clk 0:08:40]} 32. Qa5 {[%clk 0:07:10.9]} 32... Rd7 {[%clk 0:08:18]} 33. d3 {[%clk 0:06:39.7]} 33... Qxf2 {[%clk 0:07:49.6]} 34. Qc5 {[%clk 0:06:31.6]} 34... Qxg2# {[%clk 0:07:47.1]} 0-1

[Event "Live Chess"]
[Site "Chess.com"]
[Date "2011.01.25"]
[Round "-"]
[White "hipposcottimus"]
[Black "TheTenant"]
[Result "1-0"]
[CurrentPosition "r6Q/1p2rk2/pn4B1/3p4/3P1q1b/P7/4RP1P/6RK b - -"]
[Timezone "UTC"]
[ECO "C51"]
[ECOUrl "https://www.chess.com/openings/Giuoco-Piano-Game-Evans-Accepted-Anderssen-Variation"]
[UTCDate "2011.01.25"]
[UTCTime "01:51:01"]
[WhiteElo "1430"]
[BlackElo "1668"]
[TimeControl "600+5"]
[Termination "hipposcottimus won by checkmate"]
[StartTime "01:51:01"]
[EndDate "2011.01.25"]
[EndTime "02:15:28"]
[Link "https://www.chess.com/game/live/91066654"]

1. e4 {[%clk 0:10:00]} 1... e5 {[%clk 0:10:00]} 2. Nf3 {[%clk 0:09:52.7]} 2... Nc6 {[%clk 0:10:02.7]} 3. Bc4 {[%clk 0:09:51]} 3... Bc5 {[%clk 0:09:52.7]} 4. b4 {[%clk 0:09:45.8]} 4... Bxb4 {[%clk 0:09:41.6]} 5. c3 {[%clk 0:09:47.6]} 5... Be7 {[%clk 0:09:38.3]} 6. O-O {[%clk 0:09:48.4]} 6... Nf6 {[%clk 0:09:35.3]} 7. Re1 {[%clk 0:09:47]} 7... O-O {[%clk 0:09:31.9]} 8. a3 {[%clk 0:09:48.3]} 8... Na5 {[%clk 0:09:19.6]} 9. Ba2 {[%clk 0:09:34]} 9... d6 {[%clk 0:09:06.4]} 10. d4 {[%clk 0:09:33.2]} 10... exd4 {[%clk 0:09:07.7]} 11. cxd4 {[%clk 0:09:26.5]} 11... Bg4 {[%clk 0:09:00.6]} 12. Bd2 {[%clk 0:08:30.1]} 12... c6 {[%clk 0:08:50]} 13. Bc3 {[%clk 0:08:18.6]} 13... Re8 {[%clk 0:08:18.5]} 14. Qd3 {[%clk 0:07:23]} 14... Nd7 {[%clk 0:06:11]} 15. Nbd2 {[%clk 0:07:20.5]} 15... c5 {[%clk 0:06:05.9]} 16. Bb1 {[%clk 0:07:15.9]} 16... c4 {[%clk 0:06:02.9]} 17. Nxc4 {[%clk 0:07:05.3]} 17... Nxc4 {[%clk 0:06:03.4]} 18. Qxc4 {[%clk 0:07:09.1]} 18... Bxf3 {[%clk 0:06:05.9]} 19. gxf3 {[%clk 0:07:13.8]} 19... Bh4 {[%clk 0:06:00.1]} 20. Re2 {[%clk 0:07:03.1]} 20... Qg5+ {[%clk 0:05:55.9]} 21. Kh1 {[%clk 0:06:56.8]} 21... Qf4 {[%clk 0:05:41.8]} 22. Qd3 {[%clk 0:06:47]} 22... a6 {[%clk 0:04:40.9]} 23. Bc2 {[%clk 0:06:30.5]} 23... g6 {[%clk 0:03:50.5]} 24. Bd2 {[%clk 0:05:10.4]} 24... Qf6 {[%clk 0:03:48.8]} 25. Rg1 {[%clk 0:04:48.3]} 25... Qe7 {[%clk 0:03:17.6]} 26. Bh6 {[%clk 0:04:34.6]} 26... d5 {[%clk 0:03:10.5]} 27. e5 {[%clk 0:04:25.1]} 27... Nb6 {[%clk 0:03:06]} 28. e6 {[%clk 0:03:59.5]} 28... f5 {[%clk 0:02:34.1]} 29. Qxf5 {[%clk 0:03:42.9]} 29... Qf6 {[%clk 0:02:26.2]} 30. Qh5 {[%clk 0:02:49.3]} 30... Kh8 {[%clk 0:02:01.5]} 31. Bg7+ {[%clk 0:02:11.3]} 31... Kxg7 {[%clk 0:01:53.3]} 32. f4 {[%clk 0:01:56.2]} 32... Kf8 {[%clk 0:01:19]} 33. Qxh7 {[%clk 0:01:53.2]} 33... Qxf4 {[%clk 0:00:42.1]} 34. e7+ {[%clk 0:01:42.5]} 34... Rxe7 {[%clk 0:00:23.3]} 35. Qh8+ {[%clk 0:01:18.8]} 35... Kf7 {[%clk 0:00:24.8]} 36. Bxg6# {[%clk 0:01:21.5]} 1-0

[Event "Live Chess"]
[Site "Chess.com"]
[Date "2011.01.25"]
[Round "-"]
[White "goatfarmer77"]
[Black "hipposcottimus"]
[Result "0-1"]
[CurrentPosition "3r1r1k/p5p1/2P5/4p2K/7P/1Q4P1/P2q2b1/2R2R2 b - -"]
[Timezone "UTC"]
[ECO "D02"]
[ECOUrl "https://www.chess.com/openings/Queens-Pawn-Opening-Zukertort-Variation"]
[UTCDate "2011.01.25"]
[UTCTime "01:39:38"]
[WhiteElo "1398"]
[BlackElo "1416"]
[TimeControl "600"]
[Termination "hipposcottimus won by resignation"]
[StartTime "01:39:38"]
[EndDate "2011.01.25"]
[EndTime "01:49:47"]
[Link "https://www.chess.com/game/live/91063938"]

1. d4 {[%clk 0:10:00]} 1... d5 {[%clk 0:10:00]} 2. Nf3 {[%clk 0:09:57.6]} 2... f5 {[%clk 0:09:57.1]} 3. Nc3 {[%clk 0:09:54.1]} 3... Nf6 {[%clk 0:09:56]} 4. Bf4 {[%clk 0:09:45.9]} 4... Ne4 {[%clk 0:09:47.3]} 5. e3 {[%clk 0:09:39.4]} 5... e6 {[%clk 0:09:42.1]} 6. Nb5 {[%clk 0:09:32.2]} 6... Bd6 {[%clk 0:09:36.5]} 7. Nxd6+ {[%clk 0:09:17.7]} 7... cxd6 {[%clk 0:09:33.7]} 8. Bb5+ {[%clk 0:09:12.8]} 8... Nc6 {[%clk 0:09:30.7]} 9. O-O {[%clk 0:09:09.8]} 9... O-O {[%clk 0:09:29]} 10. Bxc6 {[%clk 0:09:03.8]} 10... bxc6 {[%clk 0:09:27.4]} 11. c3 {[%clk 0:08:44.7]} 11... c5 {[%clk 0:09:25.3]} 12. h4 {[%clk 0:08:32.5]} 12... Nf6 {[%clk 0:09:04.8]} 13. Bg5 {[%clk 0:08:28.9]} 13... h6 {[%clk 0:08:57.4]} 14. Bxf6 {[%clk 0:08:19]} 14... Qxf6 {[%clk 0:08:56]} 15. g3 {[%clk 0:08:10.6]} 15... e5 {[%clk 0:08:09.6]} 16. dxe5 {[%clk 0:07:55.4]} 16... dxe5 {[%clk 0:08:07.4]} 17. b4 {[%clk 0:07:47.6]} 17... Bb7 {[%clk 0:08:00.7]} 18. bxc5 {[%clk 0:07:42.6]} 18... f4 {[%clk 0:07:45.8]} 19. Qb3 {[%clk 0:07:19.9]} 19... fxg3 {[%clk 0:07:21.6]} 20. fxg3 {[%clk 0:07:16.3]} 20... Bc6 {[%clk 0:07:01.7]} 21. e4 {[%clk 0:07:13.1]} 21... Rad8 {[%clk 0:06:22.9]} 22. exd5 {[%clk 0:07:09.1]} 22... Bxd5 {[%clk 0:06:20.2]} 23. c4 {[%clk 0:07:07.4]} 23... Bxf3 {[%clk 0:06:04.8]} 24. c6 {[%clk 0:06:55.5]} 24... Qxc6 {[%clk 0:05:56]} 25. c5+ {[%clk 0:06:50.1]} 25... Kh8 {[%clk 0:05:53.6]} 26. Rac1 {[%clk 0:06:30]} 26... Qd7 {[%clk 0:04:58.5]} 27. c6 {[%clk 0:06:15.9]} 27... Qd4+ {[%clk 0:04:55.6]} 28. Kh2 {[%clk 0:06:08.4]} 28... Qd2+ {[%clk 0:04:42.8]} 29. Kh3 {[%clk 0:05:59.1]} 29... Bg2+ {[%clk 0:04:38.7]} 30. Kg4 {[%clk 0:05:48.8]} 30... h5+ {[%clk 0:04:29]} 31. Kxh5 {[%clk 0:05:37.3]} 0-1

[Event "Live Chess"]
[Site "Chess.com"]
[Date "2011.01.24"]
[Round "-"]
[White "dzimislaff"]
[Black "hipposcottimus"]
[Result "1-0"]
[CurrentPosition "r1bQnrk1/p5pp/2p2p2/2b5/4p3/P1N1PN1P/5PPB/R4RK1 b - -"]
[Timezone "UTC"]
[ECO "D10"]
[ECOUrl "https://www.chess.com/openings/Slav-Defense-3.Nc3"]
[UTCDate "2011.01.24"]
[UTCTime "20:48:27"]
[WhiteElo "1556"]
[BlackElo "1408"]
[TimeControl "360+5"]
[Termination "dzimislaff won by resignation"]
[StartTime "20:48:27"]
[EndDate "2011.01.24"]
[EndTime "20:50:35"]
[Link "https://www.chess.com/game/live/90988373"]

1. d4 {[%clk 0:06:00]} 1... d5 {[%clk 0:06:00]} 2. c4 {[%clk 0:06:03.1]} 2... c6 {[%clk 0:06:02.2]} 3. Nc3 {[%clk 0:06:05.9]} 3... Nd7 {[%clk 0:06:05.2]} 4. Bf4 {[%clk 0:06:07]} 4... e6 {[%clk 0:06:08.5]} 5. a3 {[%clk 0:06:09.8]} 5... Ngf6 {[%clk 0:06:12]} 6. e3 {[%clk 0:05:59.1]} 6... Be7 {[%clk 0:06:15.4]} 7. h3 {[%clk 0:06:02]} 7... O-O {[%clk 0:06:18.9]} 8. Nf3 {[%clk 0:06:05.9]} 8... Ne8 {[%clk 0:06:20.1]} 9. c5 {[%clk 0:06:08.2]} 9... b6 {[%clk 0:06:19.9]} 10. b4 {[%clk 0:06:11.5]} 10... bxc5 {[%clk 0:06:23.6]} 11. bxc5 {[%clk 0:06:15.5]} 11... Nxc5 {[%clk 0:06:27.6]} 12. dxc5 {[%clk 0:06:11.5]} 12... Bxc5 {[%clk 0:06:32.3]} 13. Bd3 {[%clk 0:05:56.6]} 13... f6 {[%clk 0:06:33.9]} 14. O-O {[%clk 0:05:58.5]} 14... e5 {[%clk 0:06:36.4]} 15. Bh2 {[%clk 0:06:00.5]} 15... e4 {[%clk 0:06:38.7]} 16. Bxe4 {[%clk 0:05:59.5]} 16... dxe4 {[%clk 0:06:42.6]} 17. Qxd8 {[%clk 0:06:03.3]} 1-0

[Event "Live Chess"]
[Site "Chess.com"]
[Date "2011.01.24"]
[Round "-"]
[White "neverm1nd"]
[Black "hipposcottimus"]
[Result "1-0"]
[CurrentPosition "5r1k/pp2P1pp/1b1r4/2p1n3/8/P6P/BPP3P1/1K1R3R w - -"]
[Timezone "UTC"]
[ECO "C31"]
[ECOUrl "https://www.chess.com/openings/Kings-Gambit-Declined-Falkbeer-Countergambit"]
[UTCDate "2011.01.24"]
[UTCTime "06:24:28"]
[WhiteElo "1427"]
[BlackElo "1418"]
[TimeControl "600"]
[Termination "neverm1nd won by resignation"]
[StartTime "06:24:28"]
[EndDate "2011.01.24"]
[EndTime "06:29:11"]
[Link "https://www.chess.com/game/live/90778422"]

1. e4 {[%clk 0:10:00]} 1... e5 {[%clk 0:10:00]} 2. f4 {[%clk 0:09:59.1]} 2... d5 {[%clk 0:09:58.3]} 3. fxe5 {[%clk 0:09:51.4]} 3... dxe4 {[%clk 0:09:56.8]} 4. Nc3 {[%clk 0:09:36.9]} 4... f5 {[%clk 0:09:50]} 5. d3 {[%clk 0:09:32.6]} 5... Nc6 {[%clk 0:09:45.7]} 6. Bf4 {[%clk 0:09:28.1]} 6... Bb4 {[%clk 0:09:42]} 7. dxe4 {[%clk 0:09:23.4]} 7... fxe4 {[%clk 0:09:35]} 8. Qxd8+ {[%clk 0:09:07.3]} 8... Nxd8 {[%clk 0:09:31.5]} 9. Ne2 {[%clk 0:09:04.4]} 9... Nc6 {[%clk 0:09:26.4]} 10. O-O-O {[%clk 0:08:57.3]} 10... Nge7 {[%clk 0:09:21.3]} 11. Nxe4 {[%clk 0:08:48.1]} 11... Bg4 {[%clk 0:09:09.6]} 12. h3 {[%clk 0:08:40.4]} 12... Bxe2 {[%clk 0:08:55.8]} 13. Bxe2 {[%clk 0:08:38.3]} 13... O-O {[%clk 0:08:55.4]} 14. Bh2 {[%clk 0:08:29.9]} 14... Ng6 {[%clk 0:08:40]} 15. a3 {[%clk 0:08:24]} 15... Ba5 {[%clk 0:08:32]} 16. Bc4+ {[%clk 0:08:20.4]} 16... Kh8 {[%clk 0:08:29.8]} 17. e6 {[%clk 0:08:18.3]} 17... Bb6 {[%clk 0:08:16.2]} 18. Kb1 {[%clk 0:08:13.5]} 18... Nce5 {[%clk 0:08:11.8]} 19. Bd5 {[%clk 0:08:09.1]} 19... c6 {[%clk 0:08:09.6]} 20. Ba2 {[%clk 0:08:03.2]} 20... c5 {[%clk 0:08:07.7]} 21. Nd6 {[%clk 0:07:56.9]} 21... Rad8 {[%clk 0:07:58.7]} 22. Bxe5 {[%clk 0:07:47.2]} 22... Nxe5 {[%clk 0:07:55]} 23. e7 {[%clk 0:07:46.2]} 23... Rxd6 {[%clk 0:07:42.9]} 1-0

[Event "Live Chess"]
[Site "Chess.com"]
[Date "2011.01.24"]
[Round "-"]
[White "hipposcottimus"]
[Black "football_22"]
[Result "0-1"]
[CurrentPosition "8/kpKr2R1/p7/1r6/8/8/8/8 w - -"]
[Timezone "UTC"]
[ECO "C41"]
[ECOUrl "https://www.chess.com/openings/Philidor-Defense-Exchange-Variation-4.Nxd4"]
[UTCDate "2011.01.24"]
[UTCTime "04:20:35"]
[WhiteElo "1426"]
[BlackElo "1417"]
[TimeControl "300+10"]
[Termination "football_22 won by resignation"]
[StartTime "04:20:35"]
[EndDate "2011.01.24"]
[EndTime "04:48:25"]
[Link "https://www.chess.com/game/live/90754652"]

1. e4 {[%clk 0:05:00]} 1... e5 {[%clk 0:05:00]} 2. Nf3 {[%clk 0:05:08.5]} 2... d6 {[%clk 0:05:05.2]} 3. d4 {[%clk 0:05:15.2]} 3... exd4 {[%clk 0:04:59.8]} 4. Nxd4 {[%clk 0:05:21.7]} 4... h6 {[%clk 0:04:55]} 5. c4 {[%clk 0:05:00.1]} 5... Nf6 {[%clk 0:04:51.4]} 6. Bd3 {[%clk 0:05:02.5]} 6... Qe7 {[%clk 0:04:55.4]} 7. O-O {[%clk 0:05:03.2]} 7... c5 {[%clk 0:04:46.1]} 8. Nf5 {[%clk 0:05:10.6]} 8... Qe5 {[%clk 0:04:32.1]} 9. f4 {[%clk 0:05:13.3]} 9... Qe6 {[%clk 0:04:19.9]} 10. Nc3 {[%clk 0:05:03.2]} 10... g6 {[%clk 0:04:20.5]} 11. Nd5 {[%clk 0:04:53.6]} 11... Na6 {[%clk 0:04:17.7]} 12. Nxf6+ {[%clk 0:04:33.2]} 12... Qxf6 {[%clk 0:04:18]} 13. e5 {[%clk 0:04:39.3]} 13... Qe6 {[%clk 0:03:56.7]} 14. exd6 {[%clk 0:04:27.6]} 14... Kd7 {[%clk 0:03:42.6]} 15. Qa4+ {[%clk 0:04:27.4]} 15... Kd8 {[%clk 0:03:35.5]} 16. Ng3 {[%clk 0:02:50.3]} 16... Qxd6 {[%clk 0:03:35.4]} 17. Be3 {[%clk 0:02:36.5]} 17... Bd7 {[%clk 0:03:05.7]} 18. Qa5+ {[%clk 0:02:25.4]} 18... Kc8 {[%clk 0:03:04.1]} 19. Rad1 {[%clk 0:02:24.9]} 19... Qe6 {[%clk 0:02:09.3]} 20. Ne4 {[%clk 0:02:02.4]} 20... Be7 {[%clk 0:01:43.4]} 21. Bxc5 {[%clk 0:02:02.8]} 21... Nxc5 {[%clk 0:01:28.1]} 22. Nxc5 {[%clk 0:02:10.3]} 22... Qe3+ {[%clk 0:01:31.9]} 23. Kh1 {[%clk 0:02:11.9]} 23... Bxc5 {[%clk 0:01:15.5]} 24. Rfe1 {[%clk 0:01:55.1]} 24... Qxf4 {[%clk 0:01:21.2]} 25. Qxc5+ {[%clk 0:01:55.6]} 25... Kb8 {[%clk 0:01:07.1]} 26. Be4 {[%clk 0:01:46.5]} 26... Rc8 {[%clk 0:00:24.1]} 27. Qd5 {[%clk 0:00:44.3]} 27... Bc6 {[%clk 0:00:22.7]} 28. Qd6+ {[%clk 0:00:31.4]} 28... Qxd6 {[%clk 0:00:28.3]} 29. Rxd6 {[%clk 0:00:41]} 29... a6 {[%clk 0:00:25]} 30. Bc2 {[%clk 0:00:24.8]} 30... Ka7 {[%clk 0:00:30.8]} 31. Red1 {[%clk 0:00:32]} 31... Re8 {[%clk 0:00:28.2]} 32. h3 {[%clk 0:00:36.9]} 32... Be4 {[%clk 0:00:32.1]} 33. Bxe4 {[%clk 0:00:40.3]} 33... Rxe4 {[%clk 0:00:38.6]} 34. Rd7 {[%clk 0:00:49.5]} 34... Rxc4 {[%clk 0:00:27.9]} 35. Rxf7 {[%clk 0:00:56.8]} 35... Kb6 {[%clk 0:00:29.2]} 36. b3 {[%clk 0:01:01.9]} 36... Rc2 {[%clk 0:00:36.3]} 37. a3 {[%clk 0:01:08.3]} 37... Re8 {[%clk 0:00:35.9]} 38. Rdd7 {[%clk 0:01:01.1]} 38... Rb8 {[%clk 0:00:25.7]} 39. a4 {[%clk 0:00:52.6]} 39... Rb2 {[%clk 0:00:30.6]} 40. Rd3 {[%clk 0:00:29]} 40... g5 {[%clk 0:00:29.3]} 41. Rf6+ {[%clk 0:00:35.3]} 41... Ka7 {[%clk 0:00:30.3]} 42. Rxh6 {[%clk 0:00:42.1]} 42... Rg8 {[%clk 0:00:33.6]} 43. Rh7 {[%clk 0:00:35.9]} 43... g4 {[%clk 0:00:37.7]} 44. Kh2 {[%clk 0:00:38]} 44... gxh3 {[%clk 0:00:21.3]} 45. Kxh3 {[%clk 0:00:28.1]} 45... Rbxg2 {[%clk 0:00:24.2]} 46. Rdd7 {[%clk 0:00:15.7]} 46... R2g3+ {[%clk 0:00:19.6]} 47. Kh4 {[%clk 0:00:23.7]} 47... Rxb3 {[%clk 0:00:26.6]} 48. Rhg7 {[%clk 0:00:15.6]} 48... Rh8+ {[%clk 0:00:30.9]} 49. Kg4 {[%clk 0:00:20.4]} 49... Rb4+ {[%clk 0:00:38]} 50. Kf5 {[%clk 0:00:28]} 50... Rh5+ {[%clk 0:00:26.8]} 51. Kg6 {[%clk 0:00:36]} 51... Ra5 {[%clk 0:00:32.8]} 52. Kf6 {[%clk 0:00:28.8]} 52... Raxa4 {[%clk 0:00:37.6]} 53. Ke6 {[%clk 0:00:38.4]} 53... Rb6+ {[%clk 0:00:42.2]} 54. Kd5 {[%clk 0:00:37.7]} 54... Ra5+ {[%clk 0:00:37.2]} 55. Kc4 {[%clk 0:00:43.1]} 55... Ra4+ {[%clk 0:00:42.5]} 56. Kd5 {[%clk 0:00:47.7]} 56... Rb5+ {[%clk 0:00:48.1]} 57. Kd6 {[%clk 0:00:52.5]} 57... Rd4+ {[%clk 0:00:54.6]} 58. Kc7 {[%clk 0:00:58]} 58... Rxd7+ {[%clk 0:01:01.3]} 0-1